fUSD/lending_fUSD_20250811
["ID","MTS","AMOUNT","RATE_DAILY","PERIOD"]
[378620170,1754927483608,-1065.86,0.00016986,2]
[378620171,1754927483618,-506.92,0.00016986,2]
[378620172,1754927483627,-590.69,0.00016986,2]
[378620173,1754927483637,-400.0,0.00016986,2]
[378620174,1754927483646,-1171.13,0.00016986,2]
[378620175,1754927483656,-1521.03,0.00016986,2]
[378620176,1754927483666,-870.33,0.00016986,2]
[378620177,1754927483675,-400.0,0.00016986,2]
[378620178,1754927483684,-400.0,0.00016986,2]
[378620179,1754927483694,-400.0,0.00016986,2]
[378620180,1754927483703,-1923.42,0.00016986,2]
[378620181,1754927483714,-446.78,0.00016986,2]
[378620182,1754927483724,-400.0,0.00016986,2]
[378620183,1754927483733,-400.0,0.00016986,2]
[378620184,1754927483744,-1586.92,0.00016986,2]
[378620185,1754927483753,-1856.71,0.00016986,2]
[378620186,1754927483766,-400.0,0.00016986,2]
[378620187,1754927483775,-759.87,0.00016986,2]
[378620188,1754927483785,-400.0,0.00016986,2]
[378620189,1754927483796,-187.14901029,0.00016986,2]
[378620190,1754927483805,-1514.35,0.00016986,2]
[378620191,1754927483815,-673.09,0.00016986,2]
[378620192,1754927483825,-400.0,0.00016986,2]
[378620193,1754927483835,-501.55,0.00016986,2]
[378620194,1754927483845,-439.6,0.00016986,2]
[378620195,1754927483855,-941.51,0.00016986,2]
[378620196,1754927483865,-400.0,0.00016986,2]
[378620197,1754927483875,-539.14068467,0.00016986,2]
[378620198,1754927483884,-400.0,0.00016986,2]
[378620199,1754927483893,-400.0,0.00016986,2]
[378620200,1754927483903,-400.0,0.00016986,2]
[378620201,1754927483912,-3885.14,0.00016986,2]
[378620202,1754927483922,-683.11,0.00016986,2]
[378620203,1754927483932,-473.73,0.00016986,2]
[378620204,1754927483942,-2583.67,0.00016986,2]
[378620205,1754927483952,-2266.23,0.00016986,2]
[378620206,1754927483961,-1715.42,0.00016986,2]
[378620207,1754927483971,-1813.86,0.00016986,2]
[378620208,1754927483980,-2672.96,0.00016986,2]
[378620209,1754927483990,-788.96,0.00016986,2]
[378620210,1754927484000,-400.0,0.00016986,2]
[378620211,1754927484010,-2897.92,0.00016986,2]
[378620212,1754927484020,-400.29,0.00016986,2]
[378620213,1754927484030,-400.0,0.00016986,2]
[378620214,1754927484039,-3637.18,0.00016986,2]
[378620215,1754927484049,-524.81,0.00016986,2]
[378620216,1754927484058,-705.12,0.00016986,2]
[378620217,1754927484067,-1514.49,0.00016986,2]
[378620218,1754927484077,-476.82698804,0.00016986,2]
[378620219,1754927484086,-431.36,0.00016986,2]
[378620220,1754927484095,-710.86,0.00016986,2]
[378620221,1754927484105,-278.60273858,0.00016986,2]
[378620222,1754927484114,-1396.31,0.00016986,2]
[378620223,1754927484124,-400.0,0.00016986,2]
[378620224,1754927484133,-524.97,0.00016986,2]
[378620225,1754927484143,-400.0,0.00016986,2]
[378620226,1754927484153,-616.24,0.00016986,2]
[378620227,1754927484163,-400.0,0.00016986,2]
[378620228,1754927484173,-400.0,0.00016986,2]
[378620229,1754927484183,-1487.97,0.00016986,2]
[378620230,1754927484192,-547.1,0.00016986,2]
[378620231,1754927484202,-1771.27,0.00016986,2]
[378620232,1754927484211,-400.0,0.00016986,2]
[378620233,1754927484221,-2640.83,0.00016986,2]
[378620234,1754927484231,-350.43,0.00016986,2]
[378620235,1754927484240,-1978.15,0.00016986,2]
[378620236,1754927484249,-400.0,0.00016986,2]
[378620237,1754927484259,-567.69702271,0.00016986,2]
[378620238,1754927484939,-456.91297729,0.00016986,2]
[378620239,1754927484949,-200.70815903,0.00016986,2]
[378620240,1754927485086,-580.0,0.00016986,2]
[378620241,1754927486362,510.0,0.00015557,2]
[378620242,1754927486509,-400.0,0.00016438,2]
[378620243,1754927486519,-400.0,0.00016438,2]
[378620244,1754927486528,-400.0,0.00016712,2]
[378620245,1754927486537,-8321.13184097,0.00016986,2]
[378620246,1754927486547,-2917.64,0.00016986,2]
[378620247,1754927486557,-400.0,0.00016986,2]
[378620248,1754927486567,-1304.51,0.00016986,2]
[378620249,1754927486576,-628.78,0.00016986,2]
[378620250,1754927486587,-400.0,0.00016986,2]
[378620251,1754927486596,-580.73,0.00016986,2]
[378620252,1754927486605,-403.24,0.00016986,2]
[378620253,1754927486614,-592.69,0.00016986,2]
[378620254,1754927486623,-505.53,0.00016986,2]
[378620255,1754927486632,-545.64,0.00016986,2]
[378620256,1754927486641,-458.19,0.00016986,2]
[378620257,1754927486650,-1447.63,0.00016986,2]
[378620258,1754927486659,-651.77,0.00016986,2]
[378620259,1754927486668,-1090.88,0.00016986,2]
[378620260,1754927486677,-400.0,0.00016986,2]
[378620261,1754927486687,-1016.91,0.00016986,2]
[378620262,1754927486695,-1681.83,0.00016986,2]
[378620263,1754927486705,-400.0,0.00016986,2]
[378620264,1754927486716,-2407.53,0.00016986,2]
[378620265,1754927486726,-1043.91,0.00016986,2]
[378620266,1754927486736,-400.0,0.00016986,2]
[378620267,1754927486745,-832.82,0.00016986,2]
[378620268,1754927486755,-400.0,0.00016986,2]
[378620269,1754927486764,-400.0,0.00016986,2]
[378620270,1754927486774,-400.0,0.00016986,2]
[378620271,1754927486783,-400.0,0.00016986,2]
[378620272,1754927486792,-747.85,0.00016986,2]
[378620273,1754927486801,-762.19,0.00016986,2]
[378620274,1754927486810,-1856.91,0.00016986,2]
[378620275,1754927486819,-3963.41,0.00016986,2]
[378620276,1754927486828,-950.3,0.00016986,2]
[378620277,1754927486837,-3137.11,0.00016986,2]
[378620278,1754927486847,-809.97,0.00016986,2]
[378620279,1754927486856,-1406.69,0.00016986,2]
[378620280,1754927486865,-158.50206159,0.00016986,2]
[378620281,1754927486874,-667.91,0.00016986,2]
[378620282,1754927486883,-400.0,0.00016986,2]
[378620283,1754927486893,-2310.51,0.00016986,2]
[378620284,1754927486902,-2584.94,0.00016986,2]
[378620285,1754927486911,-400.0,0.00016986,2]
[378620286,1754927486920,-295.0,0.00016989,2]
[378620287,1754927486930,-2431.808829,0.00016995,2]
[378620288,1754927486939,-2431.808829,0.00016995,2]
[378620289,1754927486948,-219.001765,0.00016995,2]
[378620290,1754927486957,-219.001765,0.00016995,2]
[378620291,1754927486966,-310.135595,0.00016995,2]
[378620292,1754927486975,-310.135595,0.00016995,2]
[378620293,1754927486983,-151.0,0.00016995,2]
[378620294,1754927486993,-1000.0,0.00016999,2]
[378620295,1754927487002,-563.17171946,0.00016999,2]
[378620296,1754927487014,-303.85526737,0.00016999,2]
[378620297,1754927487024,-979.6916974,0.00017,2]
[378620298,1754927487034,-663.66934872,0.00017,2]
[378620299,1754927487043,-3905.0,0.00017,5]
[378620300,1754927487053,-512.41,0.00017004,2]
[378620301,1754927487062,-3367.0,0.00017005,2]
[378620302,1754927487073,-810.0,0.00017005,2]
[378620303,1754927487082,-957.0,0.00017005,2]
[378620304,1754927487094,-1253.0,0.00017005,2]
[378620305,1754927487103,-893.0,0.00017005,2]
[378620306,1754927487113,-1171.0,0.00017005,2]
[378620307,1754927487123,-1295.0,0.00017005,2]
[378620308,1754927487133,-598.0,0.00017005,2]
[378620309,1754927487142,-1043.0,0.00017005,2]
[378620310,1754927487152,-565.0,0.00017005,2]
[378620311,1754927487161,-1700.37,0.00017005,2]
[378620312,1754927487170,-4145.0,0.00017005,2]
[378620313,1754927487179,-6082.0,0.00017005,2]
[378620314,1754927487189,-21461.0,0.00017005,2]
[378620315,1754927487198,-150.0,0.00017014,2]
[378620316,1754927487207,-150.0,0.00017014,2]
[378620317,1754927487216,-150.0,0.00017014,2]
[378620318,1754927487225,-150.0,0.00017014,2]
[378620319,1754927487235,-150.0,0.00017014,2]
[378620320,1754927487243,-150.0,0.00017014,2]
[378620321,1754927487253,-150.0,0.00017014,2]
[378620322,1754927487262,-150.0,0.00017014,2]
[378620323,1754927487272,-150.0,0.00017014,2]
[378620324,1754927487281,-150.0,0.00017014,2]
[378620325,1754927487290,-150.0,0.00017014,2]
[378620326,1754927487299,-150.0,0.00017014,2]
[378620327,1754927487308,-150.0,0.00017014,2]
[378620328,1754927487318,-150.0,0.00017014,2]
[378620329,1754927487327,-150.0,0.00017014,2]
[378620330,1754927487336,-150.0,0.00017014,2]
[378620331,1754927487345,-153.81762088,0.00017014,2]
[378620332,1754927487354,-150.0,0.00017014,2]
[378620333,1754927487364,-500.0,0.00017021,2]
[378620334,1754927487374,-1000.0,0.00017021,2]
[378620335,1754927487383,-260.57352114,0.00017021,2]
[378620336,1754927487392,-942.52964068,0.00017021,2]
[378620337,1754927487402,-1000.0,0.00017021,2]
[378620338,1754927487411,-524.74920819,0.00017021,2]
[378620339,1754927487420,-1000.0,0.00017021,2]
[378620340,1754927487430,-1000.0,0.00017021,2]
[378620341,1754927487439,-323.90526316,0.00017021,2]
[378620342,1754927487448,-514.0966928,0.00017021,2]
[378620343,1754927487457,-500.0,0.00017021,2]
[378620344,1754927487467,-1000.0,0.00017021,2]
[378620345,1754927487476,-500.0,0.00017021,2]
[378620346,1754927487485,-173.35,0.00017022,2]
[378620347,1754927487494,-3935.60807028,0.00017028,2]
[378620348,1754927487504,-151.0,0.00017034,2]
[378620349,1754927487513,-157.22,0.00017044,2]
[378620350,1754927487523,-293.302115,0.00017051,2]
[378620351,1754927487532,-167.55,0.00017058,2]
[378620352,1754927487541,-464.0,0.00017068,2]
[378620353,1754927487551,-359.834516,0.00017088,2]
[378620354,1754927487560,-151.0,0.00017088,2]
[378620355,1754927487569,-151.0,0.00017088,2]
[378620356,1754927487580,-151.0,0.00017088,2]
[378620357,1754927487589,-285.078796,0.00017088,2]
[378620358,1754927487598,-187.773837,0.00017088,2]
[378620359,1754927487607,-151.0,0.00017088,2]
[378620360,1754927487616,-246.607656,0.00017088,2]
[378620361,1754927487625,-500.0,0.00017099,2]
[378620362,1754927487634,-150.0,0.00017113,2]
[378620363,1754927487643,-150.0,0.00017119,2]
[378620364,1754927487652,-676.62,0.00017146,2]
[378620365,1754927487661,-461.32368,0.0001715,2]
[378620366,1754927487670,-500.0,0.00017156,2]
[378620367,1754927487680,-456.60181214,0.0001716,2]
[378620368,1754927487689,-151.0,0.00017163,2]
[378620369,1754927487698,-203.906825,0.00017163,2]
[378620370,1754927487708,-203.906825,0.00017163,2]
[378620371,1754927487720,-151.0,0.00017164,2]
[378620372,1754927487729,-265.722976,0.00017164,2]
[378620373,1754927487738,-265.722976,0.00017164,2]
[378620374,1754927487747,-232.978704,0.00017164,2]
[378620375,1754927487756,-232.978704,0.00017164,2]
[378620376,1754927487767,-293.302115,0.00017164,2]
[378620377,1754927487776,-154.94947,0.00017164,2]
[378620378,1754927487786,-154.94947,0.00017164,2]
[378620379,1754927487796,-190.545342,0.00017165,2]
[378620380,1754927487806,-151.0,0.00017165,2]
[378620381,1754927487815,-265.722976,0.00017165,2]
[378620382,1754927487824,-265.722976,0.00017165,2]
[378620383,1754927487833,-359.834516,0.00017165,2]
[378620384,1754927487842,-151.0,0.00017165,2]
[378620385,1754927487851,-151.0,0.00017165,2]
[378620386,1754927487859,-232.978704,0.00017165,2]
[378620387,1754927487868,-232.978704,0.00017165,2]
[378620388,1754927487877,-293.302115,0.00017165,2]
[378620389,1754927487886,-151.0,0.00017166,2]
[378620390,1754927487895,-265.722976,0.00017166,2]
[378620391,1754927487904,-265.722976,0.00017166,2]
[378620392,1754927487914,-359.834516,0.00017166,2]
[378620393,1754927487923,-359.834516,0.00017166,2]
[378620394,1754927487932,-151.0,0.00017166,2]
[378620395,1754927487940,-151.0,0.00017166,2]
[378620396,1754927487950,-232.978704,0.00017166,2]
[378620397,1754927487959,-232.978704,0.00017166,2]
[378620398,1754927487969,-293.302115,0.00017166,2]
[378620399,1754927487979,-151.0,0.00017167,2]
[378620400,1754927487988,-151.0,0.00017167,2]
[378620401,1754927487997,-190.545342,0.00017167,2]
[378620402,1754927488006,-190.545342,0.00017167,2]
[378620403,1754927488016,-151.0,0.00017167,2]
[378620404,1754927488027,-1052.21,0.00017167,2]
[378620405,1754927488037,-151.0,0.00017168,2]
[378620406,1754927488046,-431.123386,0.00017168,2]
[378620407,1754927488055,-500.0,0.00017168,2]
[378620408,1754927488065,-500.0,0.00017168,2]
[378620409,1754927488074,-151.0,0.00017169,2]
[378620410,1754927488083,-431.123386,0.00017169,2]
[378620411,1754927488092,-431.123386,0.00017169,2]
[378620412,1754927488101,-190.545342,0.00017169,2]
[378620413,1754927488111,-190.545342,0.00017169,2]
[378620414,1754927488121,-151.0,0.00017169,2]
[378620415,1754927488130,-280.388527,0.00017169,2]
[378620416,1754927488140,-255.0,0.00017169,2]
[378620417,1754927488149,-359.834516,0.00017169,2]
[378620418,1754927488158,-359.834516,0.00017169,2]
[378620419,1754927488168,-151.0,0.00017169,2]
[378620420,1754927488177,-219.754223,0.00017169,2]
[378620421,1754927488186,-1110.98035,0.00017169,2]
[378620422,1754927488195,-1671.850022,0.00017169,2]
[378620423,1754927488204,-190.79519,0.00017169,2]
[378620424,1754927488213,-1671.850022,0.00017169,2]
[378620425,1754927488222,-190.795181,0.00017169,2]
[378620426,1754927488231,-600.0,0.0001717,2]
[378620427,1754927488240,-600.0,0.0001717,2]
[378620428,1754927488249,-151.0,0.00017173,2]
[378620429,1754927488258,-151.0,0.00017173,2]
[378620430,1754927488268,-150.0,0.00017186,2]
[378620431,1754927488277,-271.0,0.0001719,2]
[378620432,1754927488286,-858.42203574,0.00017192,2]
[378620433,1754927488295,-3935.60807028,0.00017201,2]
[378620434,1754927488304,-150.0,0.00017213,2]
[378620435,1754927488313,-150.0,0.00017224,2]
[378620436,1754927488322,-150.0,0.00017224,2]
[378620437,1754927488331,-295.0,0.00017233,2]
[378620438,1754927488340,-200.46,0.00017234,2]
[378620439,1754927488349,-1000.0,0.00017245,2]
[378620440,1754927488358,-151.0,0.00017247,2]
[378620441,1754927488367,-150.0,0.0001725,2]
[378620442,1754927488376,-167.267157,0.00017259,2]
[378620443,1754927488385,-186.07982075,0.00017259,2]
[378620444,1754927488404,-1.01145825,0.00017259,2]
[378620445,1754927488413,-187.091279,0.00017259,2]
[378620446,1754927488423,-263.032981,0.00017259,2]
[378620447,1754927488432,-263.032981,0.00017259,2]
[378620448,1754927488441,-213.463253,0.00017259,2]
[378620449,1754927488450,-213.463253,0.00017259,2]
[378620450,1754927488459,-111.40446217,0.00017259,2]
[378620451,1754927488479,-186.52990083,0.00017259,2]
[378620452,1754927488488,-297.934363,0.00017259,2]
[378620453,1754927488497,-237.20298,0.00017259,2]
[378620454,1754927488506,-237.20298,0.00017259,2]
[378620455,1754927488514,-310.135595,0.00017259,2]
[378620456,1754927488525,-310.135589,0.00017259,2]
[378620457,1754927488534,-151.0,0.00017259,2]
[378620458,1754927488543,-302.082834,0.00017259,2]
[378620459,1754927488553,-302.082834,0.00017259,2]
[378620460,1754927488562,-369.26088,0.00017259,2]
[378620461,1754927488571,-369.26088,0.00017259,2]
[378620462,1754927488580,-500.0,0.00017259,2]
[378620463,1754927488589,-500.0,0.00017259,2]
[378620464,1754927488598,-500.0,0.00017259,2]
[378620465,1754927488607,-1052.21,0.00017259,2]
[378620466,1754927488617,-1052.21,0.00017259,2]
[378620467,1754927488626,-500.0,0.00017259,2]
[378620468,1754927488635,-500.0,0.00017259,2]
[378620469,1754927488644,-500.0,0.00017259,2]
[378620470,1754927488653,-676.62,0.00017259,2]
[378620471,1754927488662,-676.62,0.00017259,2]
[378620472,1754927488671,-512.41,0.00017259,2]
[378620473,1754927488679,-512.41,0.00017259,2]
[378620474,1754927488688,-512.41,0.00017259,2]
[378620475,1754927488698,-500.0,0.0001726,2]
[378620476,1754927488707,-500.0,0.0001726,2]
[378620477,1754927488718,-150.0,0.0001726,2]
[378620478,1754927488727,-346.03376212,0.0001726,2]
[378620479,1754927488737,-500.0,0.0001726,2]
[378620480,1754927488746,-212.62235272,0.0001726,2]
[378620481,1754927488755,-500.0,0.0001726,2]
[378620482,1754927488764,-150.0,0.0001726,2]
[378620483,1754927488774,-500.0,0.0001726,2]
[378620484,1754927488783,-151.0,0.0001726,2]
[378620485,1754927488793,-151.0,0.0001726,2]
[378620486,1754927488802,-154.94947,0.0001726,2]
[378620487,1754927488812,-154.94947,0.0001726,2]
[378620488,1754927488821,-154.94947,0.0001726,2]
[378620489,1754927488830,-154.949465,0.0001726,2]
[378620490,1754927488839,-151.0,0.0001726,2]
[378620491,1754927488848,-151.0,0.0001726,2]
[378620492,1754927488857,-262.110777,0.0001726,2]
[378620493,1754927488866,-203.906825,0.0001726,2]
[378620494,1754927488875,-203.906825,0.0001726,2]
[378620495,1754927488884,-203.906825,0.0001726,2]
[378620496,1754927488893,-203.906825,0.0001726,2]
[378620497,1754927488902,-187.773837,0.0001726,2]
[378620498,1754927488911,-187.77384,0.0001726,2]
[378620499,1754927488920,-151.0,0.0001726,2]
[378620500,1754927488929,-151.0,0.0001726,2]
[378620501,1754927488938,-2431.808829,0.0001726,2]
[378620502,1754927488947,-2431.808829,0.0001726,2]
[378620503,1754927488956,-2431.808829,0.0001726,2]
[378620504,1754927488965,-2431.808829,0.0001726,2]
[378620505,1754927488974,-2431.808829,0.0001726,2]
[378620506,1754927488984,-2431.808829,0.0001726,2]
[378620507,1754927488993,-187.091279,0.0001726,2]
[378620508,1754927489002,-187.091279,0.0001726,2]
[378620509,1754927489011,-187.091279,0.0001726,2]
[378620510,1754927489021,-187.091279,0.0001726,2]
[378620511,1754927489030,-263.032981,0.0001726,2]
[378620512,1754927489039,-263.032981,0.0001726,2]
[378620513,1754927489048,-263.032981,0.0001726,2]
[378620514,1754927489057,-263.032981,0.0001726,2]
[378620515,1754927489066,-213.463253,0.0001726,2]
[378620516,1754927489076,-213.463253,0.0001726,2]
[378620517,1754927489189,-213.463253,0.0001726,2]
[378620518,1754927489255,-213.463245,0.0001726,2]
[378620519,1754927489264,-219.001765,0.0001726,2]
[378620520,1754927489275,-219.001765,0.0001726,2]
[378620521,1754927489284,-219.001765,0.0001726,2]
[378620522,1754927489294,-219.001765,0.0001726,2]
[378620523,1754927489303,-219.001765,0.0001726,2]
[378620524,1754927489313,-219.001765,0.0001726,2]
[378620525,1754927489322,-297.934363,0.0001726,2]
[378620526,1754927489332,-297.934363,0.0001726,2]
[378620527,1754927489341,-297.934363,0.0001726,2]
[378620528,1754927489351,-297.934363,0.0001726,2]
[378620529,1754927489360,-237.20298,0.0001726,2]
[378620530,1754927489369,-237.20298,0.0001726,2]
[378620531,1754927489379,-237.20298,0.0001726,2]
[378620532,1754927489388,-237.20298,0.0001726,2]
[378620533,1754927489398,-151.0,0.0001726,2]
[378620534,1754927489407,-151.0,0.0001726,2]
[378620535,1754927489416,-302.082834,0.0001726,2]
[378620536,1754927489425,-302.082834,0.0001726,2]
[378620537,1754927489434,-302.082834,0.0001726,2]
[378620538,1754927489444,-302.082838,0.0001726,2]
[378620539,1754927489453,-369.26088,0.0001726,2]
[378620540,1754927489462,-369.26088,0.0001726,2]
[378620541,1754927489472,-369.26088,0.0001726,2]
[378620542,1754927489482,-369.26088,0.0001726,2]
[378620543,1754927489491,-458.19,0.0001726,2]
[378620544,1754927489502,-593.12,0.0001726,2]
[378620545,1754927489511,-458.7,0.0001726,2]
[378620546,1754927489521,-403.18,0.0001726,2]
[378620547,1754927489530,-428.63,0.0001726,2]
[378620548,1754927489540,-575.89,0.0001726,2]
[378620549,1754927489549,-739.95,0.0001726,2]
[378620550,1754927489559,-400.0,0.0001726,2]
[378620551,1754927489568,-400.0,0.0001726,2]
[378620552,1754927489578,-400.0,0.0001726,2]
[378620553,1754927489587,-400.0,0.0001726,2]
[378620554,1754927489596,-400.0,0.0001726,2]
[378620555,1754927489606,-400.0,0.0001726,2]
[378620556,1754927489616,-400.0,0.0001726,2]
[378620557,1754927489625,-425.55,0.0001726,2]
[378620558,1754927489635,-231.55404809,0.0001726,2]
[378620559,1754927489644,-400.0,0.0001726,2]
[378620560,1754927489653,-400.0,0.0001726,2]
[378620561,1754927489663,-400.0,0.0001726,2]
[378620562,1754927489672,-400.0,0.0001726,2]
[378620563,1754927489681,-400.0,0.0001726,2]
[378620564,1754927489691,-590.65,0.0001726,2]
[378620565,1754927489700,-156.75477157,0.0001726,2]
[378620566,1754927489710,-400.0,0.0001726,2]
[378620567,1754927489722,-582.01,0.0001726,2]
[378620568,1754927489731,-507.16,0.0001726,2]
[378620569,1754927489741,-400.0,0.0001726,2]
[378620570,1754927489750,-400.0,0.0001726,2]
[378620571,1754927489760,-400.0,0.0001726,2]
[378620572,1754927489770,-490.92,0.0001726,2]
[378620573,1754927489779,-400.0,0.0001726,2]
[378620574,1754927489788,-2836.62,0.0001726,2]
[378620575,1754927489798,-533.48,0.0001726,2]
[378620576,1754927489807,-400.0,0.0001726,2]
[378620577,1754927489817,-2012.61,0.0001726,2]
[378620578,1754927489826,-495.77,0.0001726,2]
[378620579,1754927489835,-475.18,0.0001726,2]
[378620580,1754927489845,-400.0,0.0001726,2]
[378620581,1754927489854,-400.0,0.0001726,2]
[378620582,1754927489863,-490.82,0.0001726,2]
[378620583,1754927489873,-400.0,0.0001726,2]
[378620584,1754927489882,-400.0,0.0001726,2]
[378620585,1754927489892,-639.54,0.0001726,2]
[378620586,1754927489901,-400.0,0.0001726,2]
[378620587,1754927489910,-400.0,0.0001726,2]
[378620588,1754927489919,-400.0,0.0001726,2]
[378620589,1754927489929,-474.73,0.0001726,2]
[378620590,1754927489938,-400.0,0.0001726,2]
[378620591,1754927489947,-400.0,0.0001726,2]
[378620592,1754927489956,-400.0,0.0001726,2]
[378620593,1754927489965,-405.21,0.0001726,2]
[378620594,1754927489975,-646.59,0.0001726,2]
[378620595,1754927489984,-516.88,0.0001726,2]
[378620596,1754927489993,-400.0,0.0001726,2]
[378620597,1754927490002,-400.0,0.0001726,2]
[378620598,1754927490011,-400.0,0.0001726,2]
[378620599,1754927490020,-691.08,0.0001726,2]
[378620600,1754927490029,-402.46,0.0001726,2]
[378620601,1754927490038,-486.24,0.0001726,2]
[378620602,1754927490047,-482.98574854,0.0001726,2]
[378620603,1754927490395,263.681903,0.00015955,2]
[378620607,1754927542453,250.0,0.00015979,2]
[378620609,1754927555135,222.63,0.00015977,2]
[378620610,1754927556224,167.21,0.00015977,2]
[378620612,1754927573632,150.0,0.00015985,2]
[378620614,1754927711239,150.0,9.8e-05,2]
[378620615,1754927711698,150.0,0.0001098,2]
[378620616,1754927713994,150.0,0.0001217,2]
[378620617,1754927714417,150.0,0.0001335,2]
[378620618,1754927714838,150.0,0.0001453,2]
[378620619,1754927715170,231.0,0.0001572,2]
[378620623,1754927754587,403.92188187,0.00015925,2]
[378620625,1754927776687,1302.87,0.00015699,2]
[378620626,1754927782614,1000.0,0.00015699,2]
[378620629,1754927786135,1219.38,0.00015699,2]
[378620633,1754927836351,509.0,0.00015641,2]
[378620636,1754927872614,211.12,0.00015738,2]
[378620639,1754927884160,176.27203627,0.00015926,2]
[378620648,1754927924542,1453.48,0.00015689,2]
[378620649,1754927925316,498.29,0.00015689,2]
[378620652,1754927951882,321.0,0.00013699,2]
[378620654,1754927954149,857.10842524,0.00015707,2]
[378620655,1754927954173,5926.87157476,0.00015707,2]
[378620658,1754927969457,651.88,0.00015707,2]
[378620664,1754928047649,251.1,0.00015713,2]
[378620670,1754928155734,2593.42,0.00015674,2]
[378620671,1754928191195,1220.83,0.00015689,2]
[378620672,1754928193779,170.0,0.00015689,7]
[378620673,1754928195543,509.0,0.00015697,2]
[378620674,1754928217165,1000.0,0.0001589,2]
[378620675,1754928242306,150.0,8.8e-05,2]
[378620676,1754928242692,150.0,9.98e-05,2]
[378620677,1754928243116,150.0,0.0001117,2]
[378620678,1754928243780,150.0,0.0001235,2]
[378620679,1754928244525,150.0,0.0001353,2]
[378620680,1754928245033,196.0,0.0001472,2]
[378620681,1754928245510,192.0,0.000159,2]
[378620683,1754928347899,255.2,0.00015624,2]
[378620685,1754928370813,150.0,0.00015635,2]
[378620687,1754928386014,8286.02,0.00015619,2]
[378620688,1754928452238,600.0,0.000159,5]
[378620689,1754928464105,170.6,0.00015603,2]
[378620690,1754928484327,944.69,0.00015612,2]
[378620691,1754928485475,167.15,0.00015612,2]
[378620692,1754928555565,509.0,0.00015778,2]
[378620695,1754928611233,250.0,0.00015603,2]
[378620700,1754928632000,-178.0,0.00016024,2]
[378620702,1754928632010,-408.51541478,0.00016024,2]
[378620703,1754928632022,-624.54945245,0.00016024,2]
[378620704,1754928632034,-166.93513277,0.00016024,2]
[378620705,1754928632043,-300.0,0.00016024,2]
[378620706,1754928632053,-250.0,0.00016025,2]
[378620707,1754928632064,-1680.025,0.00016025,2]
[378620708,1754928632078,-173.01,0.00016025,2]
[378620709,1754928632089,-8543.3529098,0.00016026,2]
[378620710,1754928632102,-5749.4087634,0.00016026,2]
[378620711,1754928632114,-666.14428323,0.00016026,2]
[378620712,1754928632127,-1648.79897296,0.00016026,2]
[378620713,1754928632138,-19134.01867901,0.00016026,2]
[378620714,1754928632148,-250.0,0.0001607,2]
[378620715,1754928632166,-1000.0,0.00016136,2]
[378620716,1754928632175,-222.63,0.00016137,2]
[378620717,1754928632185,-1000.0,0.00016382,2]
[378620718,1754928632195,-160.0,0.00016428,2]
[378620719,1754928632206,-151.0,0.00016428,2]
[378620720,1754928632216,-200.0,0.00016428,2]
[378620721,1754928632225,-151.0,0.00016428,2]